fUSD/lending_fUSD_20260115
["ID","MTS","AMOUNT","RATE_DAILY","PERIOD"]
[402068687,1768504265107,-588.14,0.0003589,10]
[402068688,1768504265117,-500.0,0.0003589,10]
[402068689,1768504265127,-500.0,0.0003589,10]
[402068690,1768504265138,-500.0,0.0003589,10]
[402068691,1768504265149,-500.0,0.0003589,10]
[402068692,1768504265159,-500.0,0.0003589,10]
[402068693,1768504265169,-500.0,0.0003589,10]
[402068694,1768504265182,-500.0,0.0003589,10]
[402068695,1768504265192,-990.91,0.0003589,10]
[402068696,1768504265204,-500.0,0.0003589,10]
[402068697,1768504265214,-500.0,0.0003589,10]
[402068698,1768504265225,-560.64877167,0.0003589,10]
[402068699,1768504265235,-500.0,0.0003589,10]
[402068700,1768504265245,-500.0,0.0003589,10]
[402068701,1768504265255,-500.0,0.0003589,10]
[402068702,1768504265266,-624.6,0.0003589,120]
[402068703,1768504265277,-522.63,0.0003589,10]
[402068704,1768504265287,-500.0,0.0003589,10]
[402068705,1768504265298,-500.0,0.0003589,10]
[402068706,1768504265309,-500.0,0.0003589,10]
[402068707,1768504265319,-500.0,0.0003589,10]
[402068708,1768504265329,-500.0,0.0003589,10]
[402068709,1768504265340,-500.0,0.0003589,10]
[402068710,1768504265350,-500.0,0.0003589,10]
[402068711,1768504265362,-884.32,0.0003589,10]
[402068712,1768504265372,-635.12,0.0003589,10]
[402068713,1768504265383,-693.09,0.0003589,10]
[402068714,1768504265392,-500.0,0.0003589,10]
[402068715,1768504265402,-500.0,0.0003589,10]
[402068716,1768504265413,-500.0,0.0003589,10]
[402068717,1768504265423,-724.73,0.0003589,10]
[402068718,1768504265433,-500.0,0.0003589,10]
[402068719,1768504265443,-500.0,0.0003589,10]
[402068720,1768504265453,-500.0,0.0003589,10]
[402068721,1768504265463,-586.01,0.0003589,10]
[402068722,1768504265474,-532.92,0.0003589,10]
[402068723,1768504265484,-500.0,0.0003589,10]
[402068724,1768504265494,-887.63,0.0003589,10]
[402068725,1768504265504,-500.0,0.0003589,10]
[402068726,1768504265514,-500.0,0.0003589,10]
[402068727,1768504265524,-1590.7,0.0003589,10]
[402068728,1768504265533,-500.0,0.0003589,10]
[402068729,1768504265543,-509.07,0.0003589,10]
[402068730,1768504265553,-500.0,0.0003589,10]
[402068731,1768504265563,-500.0,0.0003589,10]
[402068732,1768504265573,-500.0,0.0003589,10]
[402068733,1768504265583,-500.0,0.0003589,10]
[402068734,1768504265593,-500.0,0.0003589,10]
[402068735,1768504265603,-753.37,0.0003589,10]
[402068736,1768504265613,-916.06,0.0003589,10]
[402068737,1768504265622,-1126.18,0.0003589,10]
[402068738,1768504265632,-514.44,0.0003589,10]
[402068739,1768504265642,-549.88686106,0.0003589,10]
[402068740,1768504265651,-500.0,0.0003589,10]
[402068741,1768504265661,-301.77666693,0.0003589,10]
[402068742,1768504265671,-500.0,0.0003589,10]
[402068743,1768504265681,-150.0,0.00036055,2]
[402068744,1768504265691,-1000.0,0.00036063,7]
[402068745,1768504265701,-811.8742,0.0003607,74]
[402068746,1768504265711,-811.87421,0.0003607,74]
[402068747,1768504265721,-811.8742,0.0003607,74]
[402068748,1768504265731,-811.87421,0.0003607,74]
[402068749,1768504265741,-200.0,0.00036146,10]
[402068750,1768504265751,-200.0,0.00036147,10]
[402068751,1768504265763,-200.0,0.00036147,10]
[402068752,1768504265773,-151.0,0.00036164,10]
[402068753,1768504265848,-500.0,0.00036164,10]
[402068754,1768504265858,-860.12,0.00036164,10]
[402068755,1768504265868,-500.0,0.00036164,10]
[402068756,1768504265878,-761.5,0.00036164,10]
[402068757,1768504265887,-606.79,0.00036164,10]
[402068758,1768504265896,-344.67426692,0.00036164,10]
[402068759,1768504265906,-155.0,0.00036164,7]
[402068760,1768504265916,-155.0,0.00036164,7]
[402068761,1768504265925,-155.0,0.00036164,7]
[402068762,1768504265935,-500.0,0.00036164,10]
[402068763,1768504265945,-665.97,0.00036164,10]
[402068764,1768504265955,-500.0,0.00036164,10]
[402068765,1768504265965,-522.89,0.00036164,10]
[402068766,1768504265974,-816.27,0.00036164,10]
[402068767,1768504265984,-500.0,0.00036164,10]
[402068768,1768504265993,-500.0,0.00036164,10]
[402068769,1768504266003,-500.0,0.00036164,10]
[402068770,1768504266012,-500.0,0.00036164,10]
[402068771,1768504266021,-500.0,0.00036164,7]
[402068772,1768504266031,-500.0,0.00036164,10]
[402068773,1768504266040,-646.5,0.00036164,10]
[402068774,1768504266049,-521.50502059,0.00036164,10]
[402068775,1768504266058,-500.0,0.00036164,10]
[402068776,1768504266068,-500.0,0.00036164,10]
[402068777,1768504266077,-725.84,0.00036164,10]
[402068778,1768504266087,-500.0,0.00036164,10]
[402068779,1768504266098,-500.0,0.00036164,10]
[402068780,1768504266111,-500.0,0.00036164,10]
[402068781,1768504266121,-500.0,0.00036164,10]
[402068782,1768504266131,-538.3,0.00036164,10]
[402068783,1768504266142,-500.0,0.00036164,10]
[402068784,1768504266152,-500.0,0.00036164,10]
[402068785,1768504266162,-768.3,0.00036164,10]
[402068786,1768504266173,-711.41,0.00036164,10]
[402068787,1768504266183,-401.4613761,0.00036164,10]
[402068788,1768504266200,-664.89,0.00036164,10]
[402068789,1768504266212,-500.0,0.00036164,10]
[402068790,1768504266222,-789.19,0.00036164,10]
[402068791,1768504266232,-500.0,0.00036164,10]
[402068792,1768504266241,-500.0,0.00036164,10]
[402068793,1768504266251,-522.79,0.00036164,10]
[402068794,1768504266260,-500.0,0.00036164,10]
[402068795,1768504266270,-641.1,0.00036164,10]
[402068796,1768504266279,-500.0,0.00036164,10]
[402068797,1768504266288,-500.0,0.00036164,10]
[402068798,1768504266298,-500.0,0.00036164,10]
[402068799,1768504266309,-499.26582359,0.00036164,10]
[402068800,1768504266319,-500.0,0.00036164,10]
[402068801,1768504266329,-500.0,0.00036164,10]
[402068802,1768504266338,-500.0,0.00036164,10]
[402068803,1768504266347,-500.0,0.00036164,10]
[402068804,1768504266356,-500.0,0.00036164,10]
[402068805,1768504266365,-500.0,0.00036164,10]
[402068806,1768504266374,-521.12,0.00036164,10]
[402068807,1768504266383,-672.78,0.00036164,10]
[402068808,1768504266393,-500.0,0.00036164,10]
[402068809,1768504266402,-578.84,0.00036164,10]
[402068810,1768504266411,-500.0,0.00036164,10]
[402068811,1768504266419,-500.0,0.00036164,10]
[402068812,1768504266428,-500.0,0.00036164,10]
[402068813,1768504266437,-1033.69,0.00036164,10]
[402068814,1768504266448,-500.0,0.00036164,10]
[402068815,1768504266457,-835.63,0.00036164,10]
[402068816,1768504266467,-500.0,0.00036164,10]
[402068817,1768504266477,-500.0,0.00036164,10]
[402068818,1768504266487,-500.0,0.00036164,10]
[402068819,1768504266497,-500.0,0.00036164,10]
[402068820,1768504266506,-500.0,0.00036164,10]
[402068821,1768504266515,-500.0,0.00036164,10]
[402068822,1768504266525,-601.61,0.00036164,10]
[402068823,1768504266535,-500.0,0.00036164,10]
[402068824,1768504266545,-500.0,0.00036164,10]
[402068825,1768504266555,-500.0,0.00036164,10]
[402068826,1768504266569,-500.0,0.00036164,10]
[402068827,1768504266580,-615.6,0.00036164,10]
[402068828,1768504266589,-500.0,0.00036164,10]
[402068829,1768504266599,-500.0,0.00036164,10]
[402068830,1768504266608,-144.79076193,0.00036164,10]
[402068831,1768504267152,-355.20923807,0.00036164,10]
[402068832,1768504267161,-500.0,0.00036164,10]
[402068833,1768504267171,-55.01024948,0.00036164,10]
[402068834,1768504267183,-444.98975052,0.00036164,10]
[402068835,1768504267191,-577.65,0.00036164,10]
[402068836,1768504267201,-412.03217637,0.00036164,10]
[402068837,1768504267213,-87.96782363,0.00036164,10]
[402068838,1768504267223,-500.0,0.00036164,10]
[402068839,1768504267232,-500.0,0.00036164,10]
[402068840,1768504267241,-348.9484809,0.00036164,10]
[402068841,1768504267705,-1007.0,0.00019507,2]
[402068842,1768504267715,-412.06279394,0.00023301,2]
[402068843,1768504267724,-294.49320471,0.00035616,10]
[402068844,1768504267736,-151.0515191,0.00036164,10]
[402068845,1768504267745,-500.0,0.00036164,10]
[402068846,1768504267754,-500.0,0.00036164,10]
[402068847,1768504267763,-221.50568503,0.00036164,10]
[402068848,1768504267778,-254.94538776,0.00036164,10]
[402068849,1768504267790,-23.54892721,0.00036164,10]
[402068850,1768504267799,-591.01165774,0.00036164,10]
[402068851,1768504267810,-352.72834226,0.00036164,10]
[402068852,1768504267819,-114.06526704,0.00036164,10]
[402068853,1768504267830,-385.93473296,0.00036164,10]
[402068854,1768504267839,-728.84,0.00036164,10]
[402068855,1768504267848,-500.0,0.00036164,10]
[402068856,1768504267857,-3.60756344,0.00036164,10]
[402068857,1768504267868,-551.3774806,0.00036164,10]
[402068858,1768504267877,-556.96,0.00036164,10]
[402068859,1768504267886,-500.0,0.00036164,10]
[402068860,1768504267895,-939.23,0.00036164,10]
[402068861,1768504267904,-500.0,0.00036164,10]
[402068862,1768504267914,-363.80511973,0.00036164,10]
[402068863,1768504267925,-136.19488027,0.00036164,10]
[402068864,1768504267934,-500.0,0.00036164,10]
[402068865,1768504267943,-500.0,0.00036164,10]
[402068866,1768504267953,-650.26,0.00036164,10]
[402068867,1768504267962,-500.0,0.00036164,10]
[402068868,1768504267971,-467.2,0.00036164,10]
[402068869,1768504267980,-642.16,0.00036164,10]
[402068870,1768504267990,-312.73878312,0.00036164,10]
[402068871,1768504268005,-187.26121688,0.00036164,10]
[402068872,1768504268014,-410.50661939,0.00036164,10]
[402068873,1768504268023,-500.0,0.00036164,10]
[402068874,1768504268033,-375.89400044,0.00036164,10]
[402068875,1768504268044,-124.10599956,0.00036164,10]
[402068876,1768504268054,-500.0,0.00036164,10]
[402068877,1768504268063,-500.0,0.00036164,10]
[402068878,1768504268072,-500.0,0.00036164,10]
[402068879,1768504268082,-512.44,0.00036164,10]
[402068880,1768504268092,-230.87315325,0.00036164,10]
[402068881,1768504269005,-412.06279394,0.00026421,2]
[402068882,1768504269016,-1000.0,0.00033634,90]
[402068883,1768504269026,-1000.0,0.00033634,90]
[402068884,1768504269037,-1000.0,0.00033634,90]
[402068885,1768504269048,-229.81502958,0.00035616,10]
[402068886,1768504269059,-397.38315267,0.00035616,10]
[402068887,1768504269070,-269.12684675,0.00036164,10]
[402068888,1768504269082,-2.81545149,0.00036164,10]
[402068889,1768504269094,-513.3958169,0.00036164,10]
[402068890,1768504269107,-500.0,0.00036164,10]
[402068891,1768504269119,-979.25,0.00036164,10]
[402068892,1768504269129,-500.0,0.00036164,10]
[402068893,1768504269140,-722.79,0.00036164,10]
[402068894,1768504269151,-806.78,0.00036164,10]
[402068895,1768504269162,-556.98,0.00036164,10]
[402068896,1768504269177,-717.92,0.00036164,10]
[402068897,1768504269187,-500.0,0.00036164,10]
[402068898,1768504269200,-500.0,0.00036164,10]
[402068899,1768504269211,-783.65,0.00036164,10]
[402068900,1768504269221,-605.93,0.00036164,10]
[402068901,1768504269231,-755.21,0.00036164,10]
[402068902,1768504269243,-524.5,0.00036164,10]
[402068903,1768504269253,-500.0,0.00036164,10]
[402068904,1768504269263,-718.26,0.00036164,10]
[402068905,1768504269274,-519.85,0.00036164,10]
[402068906,1768504269283,-5.611811,0.00036164,10]
[402068907,1768504269584,-494.388189,0.00036164,10]
[402068908,1768504269593,-609.16,0.00036164,10]
[402068909,1768504269603,-500.0,0.00036164,10]
[402068910,1768504269612,-771.88,0.00036164,10]
[402068911,1768504269621,-687.46,0.00036164,10]
[402068912,1768504269632,-328.77773475,0.00036164,10]
[402068913,1768504269644,-251.32226525,0.00036164,10]
[402068914,1768504269655,-500.0,0.00036164,10]
[402068915,1768504269664,-607.98,0.00036164,10]
[402068916,1768504269674,-982.61,0.00036164,10]
[402068917,1768504269683,-568.59,0.00036164,10]
[402068918,1768504269693,-783.17,0.00036164,10]
[402068919,1768504269703,-865.36422679,0.00036164,10]
[402068920,1768504269716,-32.12577321,0.00036164,10]
[402068921,1768504269726,-500.0,0.00036164,10]
[402068922,1768504269735,-500.0,0.00036164,10]
[402068923,1768504269744,-500.0,0.00036164,10]
[402068924,1768504269754,-500.0,0.00036164,10]
[402068925,1768504269763,-500.0,0.00036164,10]
[402068926,1768504269773,-500.0,0.00036164,10]
[402068927,1768504269782,-500.0,0.00036164,10]
[402068928,1768504269791,-590.68,0.00036164,10]
[402068929,1768504269800,-500.0,0.00036164,10]
[402068930,1768504269810,-500.0,0.00036164,10]
[402068931,1768504269820,-500.0,0.00036164,10]
[402068932,1768504269829,-500.0,0.00036164,10]
[402068933,1768504269838,-500.0,0.00036164,10]
[402068934,1768504269848,-500.0,0.00036164,10]
[402068935,1768504269858,-500.0,0.00036164,10]
[402068936,1768504269867,-569.42,0.00036164,10]
[402068937,1768504269876,-524.79,0.00036164,10]
[402068938,1768504269886,-354.32370931,0.00036164,10]
[402068939,1768504269898,-145.67629069,0.00036164,10]
[402068940,1768504269907,-233.44370932,0.00036164,10]
[402068941,1768504269919,-266.55629068,0.00036164,10]
[402068942,1768504269928,-529.3,0.00036164,10]
[402068943,1768504269938,-500.0,0.00036164,10]
[402068944,1768504269948,-500.0,0.00036164,10]
[402068945,1768504269958,-511.38,0.00036164,2]
[402068946,1768504269967,-405.95327775,0.00036164,10]
[402068947,1768504269983,-265.391,0.00033634,90]
[402068948,1768504269993,-94.04672225,0.00036164,10]
[402068949,1768504270007,-834.92,0.00036164,10]
[402068950,1768504270024,-500.0,0.00036164,10]
[402068951,1768504270037,-200.0,0.00036164,120]
[402068952,1768504270046,-772.27,0.00036164,10]
[402068953,1768504270056,-1054.65,0.00036164,10]
[402068954,1768504270066,-500.0,0.00036164,10]
[402068955,1768504270077,-347.35966958,0.00036164,10]
[402068956,1768504270092,-152.64033042,0.00036164,10]
[402068957,1768504270103,-500.0,0.00036164,10]
[402068958,1768504270115,-564.0,0.00036164,10]
[402068959,1768504270125,-500.0,0.00036164,10]
[402068960,1768504270135,-500.0,0.00036164,10]
[402068961,1768504270145,-500.0,0.00036164,10]
[402068962,1768504270155,-500.0,0.00036164,10]
[402068963,1768504270165,-776.85,0.00036164,10]
[402068964,1768504270177,-406.83970555,0.00036164,10]
[402068965,1768504270189,-307.46029445,0.00036164,10]
[402068966,1768504270199,-1165.22,0.00036164,10]
[402068967,1768504270209,-500.0,0.00036164,10]
[402068968,1768504270219,-500.0,0.00036164,10]
[402068969,1768504270228,-507.4,0.00036164,10]
[402068970,1768504270238,-500.0,0.00036164,10]
[402068971,1768504270248,-546.38030738,0.00036164,10]
[402068972,1768504270258,-576.87,0.00036164,10]
[402068973,1768504270268,-500.0,0.00036164,10]
[402068974,1768504270278,-500.0,0.00036164,10]
[402068975,1768504270287,-500.0,0.00036164,10]
[402068976,1768504270297,-296.94108361,0.00036164,10]
[402068977,1768504270318,-364.0805225,0.00035616,10]
[402068978,1768504270328,-497.62200212,0.00035616,10]
[402068979,1768504270340,-2.37799788,0.00035616,10]
[402068980,1768504270350,-203.05891639,0.00036164,10]
[402068981,1768504270359,-75.74108573,0.00036164,10]
[402068982,1768504270374,-424.25891427,0.00036164,10]
[402068983,1768504270383,-268.0775957,0.00036164,10]
[402068984,1768504314343,40568.66532078,0.00030137,120]
[402068987,1768504532222,-2023.984662,0.0001675,2]
[402068988,1768504532253,-151.0,0.00016834,2]
[402068989,1768504532281,-195.0,0.00016919,2]
[402068990,1768504532309,-198.64383752,0.00016919,2]
[402068991,1768504532338,-600.0,0.00016919,2]
[402068992,1768504532367,-156.48775948,0.00016962,2]
[402068993,1768504532395,-277.80558385,0.00016962,2]
[402068994,1768504532538,-2794.1663143,0.00016962,2]
[402068995,1768504534801,-526.85834839,0.00016962,2]
[402068996,1768504534832,-250.0,0.00016965,2]
[402068997,1768504534862,-300.0,0.00016967,2]
[402068998,1768504534894,-300.0,0.00016972,2]
[402068999,1768504534930,-1200.0,0.00016972,2]
[402069000,1768504541951,413.99476632,0.00016734,2]
[402069001,1768504546952,-500.0,0.00016973,2]
[402069002,1768504546982,-500.0,0.00016973,2]
[402069003,1768504547012,-500.0,0.00016973,2]
[402069004,1768504547042,-300.0,0.00017024,2]
[402069005,1768504547072,-300.0,0.00017024,2]
[402069006,1768504547102,-311.84394059,0.00017024,2]
[402069007,1768504547135,-300.6515313,0.00017061,2]
[402069008,1768504547193,-500.0,0.00017061,2]
[402069009,1768504547228,-500.0,0.00017061,2]
[402069010,1768504547261,-500.0,0.00017061,2]
[402069011,1768504547293,-482.46692093,0.00017061,2]
[402069012,1768504547329,-217.80759492,0.00017061,2]
[402069013,1768504547469,-174.47002452,0.00017061,2]
[402069014,1768504547506,-748.32107049,0.00017061,2]
[402069015,1768504547536,-748.32107049,0.00017061,2]
[402069016,1768504547567,-748.32107049,0.00017061,2]
[402069017,1768504547603,-748.32107049,0.00017061,2]
[402069018,1768504547634,-748.32107049,0.00017061,2]
[402069019,1768504547667,-748.32107049,0.00017061,2]
[402069020,1768504547845,-748.32107049,0.00017061,2]
[402069021,1768504547881,-748.32107049,0.00017061,2]
[402069022,1768504547917,-748.32107049,0.00017061,2]
[402069023,1768504547954,-748.32107049,0.00017061,2]
[402069024,1768504547991,-748.32107049,0.00017061,2]
[402069025,1768504548025,-748.32107049,0.00017061,2]
[402069026,1768504548059,-271.83608363,0.00017061,2]
[402069027,1768504548277,-476.48498686,0.00017061,2]
[402069028,1768504548310,-748.32107049,0.00017061,2]
[402069029,1768504548343,-748.32107049,0.00017061,2]
[402069030,1768504548375,-748.32107049,0.00017061,2]
[402069031,1768504548406,-748.32107049,0.00017061,2]
[402069032,1768504548437,-748.32107049,0.00017061,2]
[402069033,1768504548469,-748.32107049,0.00017061,2]
[402069034,1768504548569,-748.32107049,0.00017061,2]
[402069035,1768504548600,-748.32107049,0.00017061,2]
[402069036,1768504548631,-748.32107049,0.00017061,2]
[402069037,1768504548665,-748.32107049,0.00017061,2]
[402069038,1768504548697,-748.32107049,0.00017061,2]
[402069039,1768504548730,-748.32107049,0.00017061,2]
[402069040,1768504548766,-271.83608363,0.00017061,2]
[402069041,1768504549443,-476.48498686,0.00017061,2]
[402069042,1768504549478,-748.32107049,0.00017061,2]
[402069043,1768504549511,-748.32107049,0.00017061,2]
[402069044,1768504549546,-748.32107049,0.00017061,2]
[402069045,1768504549578,-748.32107049,0.00017061,2]
[402069046,1768504549614,-748.32107049,0.00017061,2]
[402069047,1768504549649,-748.32107049,0.00017061,2]
[402069048,1768504549790,-748.32107049,0.00017061,2]
[402069049,1768504549822,-748.32107049,0.00017061,2]
[402069050,1768504549855,-748.32107049,0.00017061,2]
[402069051,1768504549887,-748.32107049,0.00017061,2]
[402069052,1768504549919,-748.32107049,0.00017061,2]
[402069053,1768504549962,-748.32107049,0.00017061,2]
[402069054,1768504549996,-271.83608363,0.00017061,2]
[402069055,1768504550071,413.9947663,0.00016848,2]
[402069056,1768504551574,-121.89760061,0.00017061,2]
[402069057,1768504551587,-354.58738625,0.00017061,2]
[402069058,1768504551596,-393.73368424,0.00017061,2]
[402069059,1768504551610,-354.58738625,0.00017061,2]
[402069060,1768504551620,-393.73368424,0.00017061,2]
[402069061,1768504551655,-354.58738625,0.00017061,2]
[402069062,1768504551684,-748.32107049,0.00017061,2]
[402069063,1768504551713,-748.32107049,0.00017061,2]
[402069064,1768504551741,-748.32107049,0.00017061,2]
[402069065,1768504551771,-748.32107049,0.00017061,2]
[402069066,1768504551798,-748.32107049,0.00017061,2]
[402069067,1768504551828,-748.32107049,0.00017061,2]
[402069068,1768504551912,-748.32107049,0.00017061,2]
[402069069,1768504551941,-748.32107049,0.00017061,2]
[402069070,1768504551970,-748.32107049,0.00017061,2]
[402069071,1768504552001,-748.32107049,0.00017061,2]
[402069072,1768504552032,-748.32107049,0.00017061,2]
[402069073,1768504552062,-748.32107049,0.00017061,2]
[402069074,1768504552091,-271.83608363,0.00017061,2]
[402069075,1768504552137,-476.48498686,0.00017061,2]
[402069076,1768504552170,-748.32107049,0.00017061,2]
[402069077,1768504552201,-748.32107049,0.00017061,2]
[402069078,1768504552230,-748.32107049,0.00017061,2]
[402069079,1768504552260,-748.32107049,0.00017061,2]
[402069080,1768504552288,-748.32107049,0.00017061,2]
[402069081,1768504552316,-748.32107049,0.00017061,2]
[402069082,1768504552829,-39.14629799,0.00017061,2]
[402069083,1768504552848,-709.1747725,0.00017061,2]
[402069084,1768504552857,-39.14629799,0.00017061,2]
[402069085,1768504552871,-67.1871804,0.00017061,2]
[402069086,1768504553182,-641.9875921,0.00017061,2]
[402069087,1768504553212,-748.32107049,0.00017061,2]
[402069088,1768504553241,-748.32107049,0.00017061,2]
[402069089,1768504553270,-748.32107049,0.00017061,2]
[402069090,1768504553304,-748.32107049,0.00017061,2]
[402069091,1768504553334,-734.71523284,0.00017061,2]
[402069092,1768504553365,-525.32055336,0.00017061,2]
[402069093,1768504553467,-209.39467948,0.00017061,2]
[402069094,1768504553498,-734.71523284,0.00017061,2]
[402069095,1768504553528,-734.71523284,0.00017061,2]
[402069096,1768504553557,-734.71523284,0.00017061,2]
[402069097,1768504553590,-734.71523284,0.00017061,2]
[402069098,1768504553621,-734.71523284,0.00017061,2]
[402069099,1768504553652,-734.71523284,0.00017061,2]
[402069100,1768504553684,-29.92261412,0.00017061,2]
[402069101,1768504553752,-704.79261872,0.00017061,2]
[402069102,1768504553783,-734.71523284,0.00017061,2]
[402069103,1768504553816,-734.71523284,0.00017061,2]
[402069104,1768504553847,-734.71523284,0.00017061,2]
[402069105,1768504553878,-734.71523284,0.00017061,2]
[402069106,1768504553909,-734.71523284,0.00017061,2]
[402069107,1768504553939,-508.55720132,0.00017061,2]
[402069108,1768504554059,-226.15803152,0.00017061,2]
[402069109,1768504554090,-734.71523284,0.00017061,2]
[402069110,1768504554122,-734.71523284,0.00017061,2]
[402069111,1768504554153,-734.71523284,0.00017061,2]
[402069112,1768504554294,-734.71523284,0.00017061,2]
[402069113,1768504554407,-734.71523284,0.00017061,2]
[402069114,1768504554444,-734.71523284,0.00017061,2]
[402069115,1768504554896,-413.9947663,0.00016961,2]
[402069116,1768504554905,-21.5579447,0.00017061,2]
[402069117,1768504554970,-713.15728803,0.00017061,2]
[402069118,1768504554981,-21.55794481,0.00017061,2]
[402069119,1768504555031,-478.44205519,0.00017061,2]
[402069120,1768504555040,-252.66908769,0.00017061,2]
[402069121,1768504601969,-500.0,0.00016973,2]
[402069122,1768504602001,-300.0,0.0001706,2]
[402069123,1768504602034,-247.33091231,0.00017061,2]
[402069124,1768504602064,-500.0,0.00017061,2]
[402069125,1768504602094,-500.0,0.00017061,2]
[402069126,1768504602125,-500.0,0.00017061,2]
[402069127,1768504602156,-500.0,0.00017061,2]
[402069128,1768504602323,-500.0,0.00017061,2]
[402069129,1768504602353,-500.0,0.00017061,2]
[402069130,1768504602383,-500.0,0.00017061,2]
[402069131,1768504602412,-405.34817538,0.00017061,2]
[402069132,1768504603126,-94.65182462,0.00017061,2]
[402069133,1768504604820,-500.0,0.00017061,2]
[402069134,1768504604849,-500.0,0.00017061,2]
[402069135,1768504604878,-393.90028501,0.00017061,2]
[402069136,1768504604906,-500.0,0.00017061,2]
[402069137,1768504604936,-500.0,0.00017061,2]
[402069138,1768504615589,281.0,0.00017062,2]
[402069139,1768504621832,300.0,0.00017061,2]
[402069140,1768504652301,500.0,0.00017061,2]
[402069141,1768504681292,300.0,0.00017061,2]
[402069142,1768504681910,355.0,0.00017061,2]
[402069143,1768504686361,3476.20942998,0.00016962,2]
[402069144,1768504686384,7756.66308851,0.00016962,2]
[402069146,1768504778311,243.07988586,0.00016962,2]
[402069147,1768504801202,300.0,0.00017061,2]
[402069148,1768504801258,1200.0,0.00017061,2]
[402069149,1768504806460,500.0,0.00016973,2]
[402069150,1768504822089,0.26702563,0.00016962,2]
[402069151,1768504822113,332.67437437,0.00016962,2]
[402069153,1768504866302,500.0,0.00016973,2]
[402069154,1768504867107,500.0,0.00016973,2]
[402069155,1768504894127,1261.266,0.00016721,2]
[402069157,1768504927394,500.0,0.00016973,2]
[402069158,1768504931231,577.21725198,0.00017052,2]
[402069159,1768504931454,200.0,0.00017052,2]
[402069160,1768504950487,500.0,0.00017052,2]
[402069161,1768504982484,605.0,0.0003,120]
[402069162,1768504987785,463.03847745,0.00017061,2]
[402069163,1768505016750,3474.09699624,0.00016962,2]
[402069164,1768505041244,300.0,0.00017061,2]
[402069165,1768505061503,212.69490011,0.00016962,2]
[402069166,1768505074978,1179.02199985,0.00016962,2]
[402069167,1768505075002,10000.01,0.00016962,2]
[402069168,1768505075030,113.46514476,0.00016962,2]
[402069169,1768505101178,300.0,0.00017061,2]
[402069170,1768505101213,1200.0,0.00017061,2]
[402069171,1768505106684,500.0,0.00016973,2]
[402069172,1768505115804,7886.54485524,0.00017052,2]
[402069173,1768505115828,10000.01,0.00017052,2]
[402069174,1768505115853,10000.01,0.00017052,2]
[402069175,1768505115878,10000.01,0.00017052,2]
[402069176,1768505115902,10000.01,0.00017052,2]
[402069177,1768505115928,10000.01,0.00017052,2]
[402069178,1768505115953,10000.01,0.00017052,2]
[402069179,1768505115977,10000.01,0.00017052,2]
[402069180,1768505116001,338.94449138,0.00017052,2]
[402069181,1768505119821,388.58,0.00025435,120]
[402069182,1768505119976,388.58,0.00027747,120]
[402069184,1768505134168,-583.74377098,0.00016,2]
[402069185,1768505141300,-3281.36853668,0.00017058,2]
[402069186,1768505141332,-10000.01,0.00017058,2]
[402069187,1768505141374,-10000.01,0.00017058,2]
[402069188,1768505143323,-10000.01,0.00017058,2]
[402069189,1768505143452,-10000.01,0.00017058,2]
[402069190,1768505146479,-10000.01,0.00017058,2]
[402069191,1768505146599,-4298.26749022,0.00017058,2]
[402069199,1768505266652,930.12391449,0.00013,15]